Cogmind - Beta 13 @@@ ROGUE MODE // 2024.04.22 @ 16:18:45 Player: Some Pennies Result: Self-destructed Performance ------------- Evolutions (2) 1000 Regions Visited (3) 600 Robots Destroyed (27) 135 Value Destroyed (810) 810 Prototype IDs (3) 60 Alien Tech Used (0) 0 Bonus (0) 0 TOTAL SCORE: 2605 Bonus ------- None Cogmind --------- Core Integrity 550/550 Matter 193/300 Energy 85/100 System Corruption 0% Temperature Cool (0) Movement Hovering (228) Ox3 Location -8/Materials Parts ------- > --- POWER (1) -------- (None) > --- PROPULSION (3) --- Hover Unit Airjet Aerolev Unit > --- UTILITY (5) ------ Huge Storage Unit Transport Network Coupler Core Shielding > --- WEAPON (2) ------- Light Cannon Light Cannon > --- INVENTORY (25) --- (None) Peak State ------------ > --- POWER ------------ (None) > --- PROPULSION ------- Carbon-fiber Leg Airjet Aerolev Unit > --- UTILITY ---------- Huge Storage Unit Seismic Detector Transport Network Coupler Core Shielding Medium Armor Plating > --- WEAPON ----------- Light Cannon Light Cannon > --- INVENTORY -------- Ion Engine Light Ion Engine Heat Sink Signal Interpreter Seismic Detector Light Armor Plating Medium Armor Plating Medium Armor Plating Medium Armor Plating Medium Armor Plating Hacking Suite Particle Gun Light Cannon Light Cannon Grenade Launcher Subdweller Shrapnel Launcher Mining Laser [Rating: 20] Favorites ----------- Power Light Ion Engine Engine Light Ion Engine Propulsion Light Treads Treads Light Treads Leg Carbon-fiber Leg Wheel Subdweller Monowheel Hover Unit Aerolev Unit Utility Huge Storage Unit Device Seismic Detector Storage Huge Storage Unit Processor Machine Analyzer Protection Core Shielding Weapon Light Cannon Energy Gun Particle Gun Ballistic Gun Assault Rifle Ballistic Cannon Light Cannon Launcher Grenade Launcher Build | -11 -10 -10 -8 ------- Run | Yrd Mat Sub Mat Slots Evolved 4 | . . . 4 Power . | . . . . Propulsion 1 | . . . 1 Utility 3 | . . . 3 Weapon . | . . . . Parts Attached 38 | 7 8 15 8 Power 2 | 1 . 1 . Engine 2 | 1 . 1 . Core . | . . . . Reactor . | . . . . Propulsion 9 | 2 . 3 4 Treads 3 | 2 . 1 . Leg 1 | . . . 1 Wheel 2 | . . 2 . Hover 3 | . . . 3 Flight . | . . . . Utility 11 | 2 2 3 4 Device 4 | 1 . 2 1 Storage 2 | 1 1 . . Processor 2 | . 1 . 1 Hackware . | . . . . Protection 3 | . . 1 2 Artifact . | . . . . Weapon 16 | 2 6 8 . Energy Gun 1 | . 1 . . Energy Cannon . | . . . . Ballistic Gun 4 | 2 2 . . Ballistic Cannon 7 | . 2 5 . Launcher 4 | . 1 3 . Special Weapon . | . . . . Impact Weapon . | . . . . Slashing Weapon . | . . . . Piercing Weapon . | . . . . Special Melee Weapon . | . . . . Unidentified Prototypes 1 | . . . 1 Parts Lost 8 | . . 7 1 Power 2 | . . 1 1 Propulsion 3 | . . 3 . Utility . | . . . . Weapon 3 | . . 3 . Highest Loss Streak 5 | . . 5 1 To Critical Strikes . | . . . . Average Slot Usage (%) 81 | . 100 74 84 Engine 13 | . 14 13 2 Treads 7 | . 28 1 . Wheel 1 | . . 2 6 Device 2 | . 6 . 8 Storage 13 | . 14 14 9 Processor 2 | . 7 . 8 Protection 10 | . . 12 17 Ballistic Gun 4 | . 18 . . Ballistic Cannon 23 | . 9 27 18 Naked Turns . | . . . . Heaviest Build 98 | 15 91 93 98 Greatest Support 40 | 40 40 40 22 Greatest Overweight (x) 29 | . 2 29 11 Average Overweight (x) 7 | . 1 12 5 Largest Inventory Capacity 25 | 8 25 25 25 Average Capacity 24 | 6 24 25 25 Most Carried 25 | 4 20 25 19 Average Carried 18 | 1 13 20 16 Final Capacity 25 | 8 25 25 25 Final Carried 19 | 3 19 15 . Class Distribution -------------------- 100% | Mutant Dominant Class ---------------- Mutant | -10/Materials Mutant | -10/Subcaves Mutant | -8/Materials Resources | -11 -10 -10 -8 ----------- Run | Yrd Mat Sub Mat Matter Collected 1202 | 217 496 349 140 Remotely . | . . . . Salvage Created 794 | 27 485 254 28 Parts 42 | 4 28 9 1 Haulers Intercepted 1 | . 1 . . Recyclers Shooed 2 | . 2 . . Parts Field Recycled . | . . . . Retrieved Matter . | . . . . Parts Self-Destructed 4 | . . 4 . Prevented . | . . . . Kills | -11 -10 -10 -8 ------- Run | Yrd Mat Sub Mat Combat Hostiles Destroyed 19 | . 7 11 1 Guns 7 | . 7 . . Cannons 10 | . . 9 1 AOE 2 | . . 2 . Classes Destroyed 12 | 1 7 3 1 Worker 2 | . 2 . . Tunneler 1 | 1 . . . Hauler 1 | . 1 . . Recycler 1 | . 1 . . Mechanic 1 | . 1 . . Operator 1 | . 1 . . Watcher 1 | . 1 . . Swarmer 1 | . . 1 . Grunt 9 | . 7 2 . Sentry 1 | . . 1 . Hunter 1 | . . . 1 Subdweller 7 | . . 7 . Best Kill Streak 3 | 1 2 3 1 Combat Bots Only 3 | . 2 3 1 Max Kills in Single Turn 1 | 1 1 1 1 Gunslinging . | . . . . Exploded 1 | . . 1 . Melee . | . . . . Uniques/NPCs Destroyed . | . . . . Combat | -11 -10 -10 -8 -------- Run | Yrd Mat Sub Mat Hostile Shots Fired 113 | . 40 65 8 Missed 33 | . 12 20 1 Damage Taken 1441 | . 368 958 115 Core 229 | . 51 178 . Absorbed by Shields . | . . . . Redirected to Shielding 9 | . . 9 . Core Remaining (%) 54 | 100 . 8 . Volleys Fired 104 | 2 55 43 4 Largest 2 | 2 2 2 2 Hottest 70 | 40 70 70 70 Shots Fired 206 | 4 110 84 8 Gun 109 | 4 105 . . Cannon 91 | . 2 81 8 Launcher 6 | . 3 3 . Special . | . . . . Kinetic 202 | 4 107 83 8 Thermal . | . . . . Explosive 4 | . 3 1 . Electromagnetic . | . . . . Robot Hit Streak 13 | 1 13 8 7 Robot Miss Streak 4 | 2 4 2 2 Penetration Max . | . . . . Secondary Targets . | . . . . Shots Hit Robots 132 | 1 68 59 4 Core Hits 55 | 1 30 21 3 Critical Kills 1 | . 1 . . Critical Parts Destroyed . | . . . . Critical Strikes 4 | . 1 3 . Destroy 1 | . 1 . . Blast 3 | . . 3 . Melee Attacks . | . . . . Impact . | . . . . Slashing . | . . . . Piercing . | . . . . Sneak Attacks . | . . . . Combat Hostiles . | . . . . Follow-up Attacks . | . . . . Damage Inflicted 2232 | 19 1020 1141 52 Guns 841 | 12 829 . . Cannons 995 | . 16 927 52 Explosions 389 | . 175 214 . Melee . | . . . . Ramming 7 | 7 . . . Kinetic 1934 | 12 845 1025 52 Thermal . | . . . . Explosive 291 | . 175 116 . Electromagnetic . | . . . . Impact . | . . . . Slashing . | . . . . Piercing . | . . . . Highest Corruption . | . . . . Average Corruption . | . . . . Corruption Purged . | . . . . Corruption Blocked . | . . . . Overload Shots . | . . . . Overflow Damage 33 | . 33 . . Projectiles . | . . . . Explosions 33 | . 33 . . Melee . | . . . . Knockbacks 9 | . . 9 . Impact . | . . . . Kinetic 9 | . . 9 . Secondary . | . . . . Self-Inflicted Damage 21 | . . 21 . Shots 2 | . . 2 . Rammed 1 | 1 . . . Targets Rammed 1 | 1 . . . Kicked . | . . . . Crushed . | . . . . Highest Temperature 20 | . 20 . . Average Temperature 5 | . 5 . . Received Heat Transfer 447 | . 243 204 . Siege Activations . | . . . . Robots Corrupted . | . . . . Combat Hostiles . | . . . . Parts Fried . | . . . . Impact Corruptions . | . . . . Robots Melted . | . . . . Combat Hostiles . | . . . . Parts Melted . | . . . . Heat Transferred . | . . . . Parts Sabotaged . | . . . . Parts Stolen . | . . . . Parts Stripped . | . . . . Power Chain Reactions . | . . . . Alert | -11 -10 -10 -8 ------- Run | Yrd Mat Sub Mat Peak Influence 165 | 5 165 . 35 Initial 3 | . 3 . . Average 44 | 1 51 . 27 Maximum Alert Level . | . . . . Low Security (%) 100 | 100 100 . 100 Level 1 . | . . . . Level 2 . | . . . . Level 3 . | . . . . Level 4 . | . . . . Level 5 . | . . . . High Security . | . . . . Max Security . | . . . . Squads Dispatched 1 | . . . 1 Investigation . | . . . . Extermination . | . . . . Reinforcement 1 | . . . 1 Assault . | . . . . Garrison . | . . . . Intercept . | . . . . Searches Triggered . | . . . . Construction Impeded . | . . . . Haulers Reinforced . | . . . . Active Scanning Responses . | . . . . Cargo Convoy Interrupts . | . . . . Stealth | -11 -10 -10 -8 --------- Run | Yrd Mat Sub Mat Distress Signals 1 | . 1 . . Communications Jammed . | . . . . Distress Signals . | . . . . Times Spotted 35 | . 23 10 2 Peak Tracking Total 3 | . 3 2 1 Tactical Retreats 1 | . 1 . . Traps | -11 -10 -10 -8 ------- Run | Yrd Mat Sub Mat Traps Triggered . | . . . . Indirectly . | . . . . Trap Hack Attempts . | . . . . Triggered . | . . . . Disarmed . | . . . . Reprogrammed . | . . . . Reused . | . . . . Traps Extracted . | . . . . Installed . | . . . . Triggered . | . . . . Machines | -11 -10 -10 -8 ---------- Run | Yrd Mat Sub Mat Machines Disabled . | . . . . Max in Single Turn . | . . . . Machines Repaired . | . . . . Machines Dismantled . | . . . . Machines Sabotaged . | . . . . Overloaded Fab Kills . | . . . . Hacking | -11 -10 -10 -8 --------- Run | Yrd Mat Sub Mat Machines Accessed 7 | . 6 . 1 Terminals 5 | . 5 . . Fabricators . | . . . . Repair Stations . | . . . . Recycling Units 2 | . 1 . 1 Scanalyzers . | . . . . Garrison Access . | . . . . Total Hacks 23 | . 18 . 5 Successful 10 | . 7 . 3 Failed 13 | . 11 . 2 Catastrophic 1 | . 1 . . Database Lockouts . | . . . . Manual 7 | . 6 . 1 Terminals 16 | . 16 . . Fabricators . | . . . . Repair Stations . | . . . . Recycling Units 7 | . 2 . 5 Scanalyzers . | . . . . Garrison Access . | . . . . Terminal Hacks 6 | . 6 . . Part Schematic 1 | . 1 . . Robot Analysis 2 | . 2 . . Prototype ID Bank 1 | . 1 . . Locate Traps 1 | . 1 . . Zone Layout 1 | . 1 . . Fabricator Hacks . | . . . . Repair Station Hacks . | . . . . Recycling Unit Hacks 3 | . 1 . 2 Recycle Component 1 | . . . 1 Report Inventory 2 | . 1 . 1 Scanalyzer . | . . . . Garrison Access Hacks . | . . . . Unauthorized Hacks 1 | . . . 1 Terminals . | . . . . Fabricators . | . . . . Repair Stations . | . . . . Recycling Units 1 | . . . 1 Monitor 1 | . . . 1 Scanalyzers . | . . . . Garrison Access . | . . . . Data Cores Recovered 1 | . 1 . . Used 1 | . 1 . . Hacking Detections 5 | . 5 . . Full Trace Events . | . . . . Feedback Events . | . . . . Feedback Blocked . | . . . . Robot Schematics Acquired . | . . . . Robots Built . | . . . . Authchips . | . . . . Time . | . . . . Total Robot Build Rating . | . . . . Part Schematics Acquired 1 | . 1 . . Parts Built . | . . . . Authchips . | . . . . Time . | . . . . Total Part Build Rating . | . . . . Parts Repaired . | . . . . Time . | . . . . Parts Recycled 1 | . . . 1 Recycled Matter . | . . . . Retrieved Matter . | . . . . Retrieved Components . | . . . . Parts Scanalyzed . | . . . . Part Schematics Acquired . | . . . . Parts Damaged . | . . . . Bothacking | -11 -10 -10 -8 ------------ Run | Yrd Mat Sub Mat Used RIF Installer . | . . . . Robots Hacked . | . . . . Non-combat . | . . . . Combat . | . . . . Robot Hacks Applied . | . . . . Relay Couplers Released . | . . . . Fabnet Peak Effective % . | . . . . Robots Rewired . | . . . . Allies Hacked . | . . . . Hacks Repelled . | . . . . Allies | -11 -10 -10 -8 -------- Run | Yrd Mat Sub Mat Total Allies . | . . . . Largest Group . | . . . . Highest-Rated Group . | . . . . Highest-Rated Ally . | . . . . Total Orders . | . . . . Ally Attacks . | . . . . Total Damage . | . . . . Kills . | . . . . Allies Corrupted . | . . . . Allies Melted . | . . . . Intel | -11 -10 -10 -8 ------- Run | Yrd Mat Sub Mat Robot Analysis Total 2 | . 2 . . Derelict Logs Recovered . | . . . . Drone Launches . | . . . . Drone Recoveries . | . . . . Exploration | -11 -10 -10 -8 ------------- Run | Yrd Mat Sub Mat Turns Passed 6525 | 102 1499 4627 297 Spaces Moved 1270 | 64 425 724 57 Core 260 | 22 . 238 . Treads 541 | 42 425 74 . Legs 30 | . . . 30 Wheels 417 | . . 412 5 Hover 22 | . . . 22 Flight . | . . . . Fastest Speed 50 | 50 160 150 215 Average Speed 479 | 122 304 616 446 Slowest Speed 1500 | 160 320 1500 720 Overloaded Moves . | . . . . Propulsion Burnouts . | . . . . Robots Hopped . | . . . . Cave-ins Triggered . | . . . . Exploration Rate (%) 33 | 3 75 48 6 Regions Visited 3 Branch Regions 1 Pre-discovered Areas . | . . . . Known Exits Taken . | . . . . Unknown Exits Taken 3 | 1 1 1 . Scrap Searched . | . . . . Spaces Dug . | . . . . Terrain Destroyed 47 | . 13 34 . Melee . | . . . . Projectile . | . . . . AOE 47 | . 13 34 . Terrain Rammed . | . . . . Walls Destroyed . | . . . . Machines Disabled . | . . . . Actions | -11 -10 -10 -8 --------- Run | Yrd Mat Sub Mat Total 1516 | 83 522 809 102 Wait 12 | . 7 5 . Move 1268 | 64 424 723 57 Hop . | . . . . Pick Up 55 | 10 22 13 10 Fast Attach . | . . . . Attach 21 | 7 . 8 6 Detach 2 | . . . 2 Swap 17 | . 8 7 2 Drop 37 | . 6 10 21 Fire 104 | 2 55 43 4 Melee . | . . . . Ram . | . . . . Kick . | . . . . Crush . | . . . . Escape Stasis . | . . . . Rewire . | . . . . Trap . | . . . . Miscellaneous . | . . . . Route ------- -11/Scrapyard -10/Materials (discovered 4 exits: [*Mat x2] / [*Min] / [*Sub]) -10/Subcaves -8/Materials History --------- Turn | Location | Event 7 | -11/Scrapyard | Discovered new exit (range 15) 103 | -11/Scrapyard | Entered Materials 301 | -10/Materials | Build established: Mutant 526 | -10/Materials | Discovered new exit (range 10) 1067 | -10/Materials | Discovered new exit (range 13) 1496 | -10/Materials | Discovered new exit (range 14) 1522 | -10/Materials | Discovered new exit (range 10) 1602 | -10/Materials | Entered Subcaves 1684 | -10/Subcaves | Ambushed by Subdwellers from Twisted Machinery 1708 | -10/Subcaves | Core integrity fell below 50% 1923 | -10/Subcaves | Shifting Twisted Machinery released Sub. Machine Gun 1927 | -10/Subcaves | Ambushed by Subdwellers from Twisted Machinery 1948 | -10/Subcaves | Core integrity fell below 20% 1993 | -10/Subcaves | Lost 5 parts (1p2n2w) 2396 | -10/Subcaves | Shifting Twisted Machinery released Sub. Optics 5907 | -10/Subcaves | Discovered new exit (range 9) 6229 | -10/Subcaves | Entered Materials 6229 | -8/Materials | Evolved 4 slots: Propulsion x1, Utility x3 6526 | -8/Materials | Self-destructed Last Messages --------------- 06518_ Dropped Hacking Suite. 06518_ Dropped Particle Gun. 06519_ Dropped Lgt. Cannon. 06520_ Dropped Grenade Launcher. 06520_ Dropped Med. Armor Plating. 06521_ Dropped Seismic Detector. 06521_ Dropped Signal Interpreter. 06522_ Dropped Adv. Weight Redist. System. 06522_ Dropped Heat Sink. 06523_ Dropped Carbon-fiber Leg. 06523_ Dropped Lgt. Ion Engine. 06524_ Dropped Ion Engine. 06524_ Dropped Seismic Detector. 06525_ Dropped Mining Laser. 06525_ Mining Laser crushed and broken. 06525_ Dropped Sub. Shrapnel Launcher. 06525_ Sub. Shrapnel Launcher crushed and broken. 06526_ Dropped Med. Armor Plating. 06526_ Med. Armor Plating crushed and broken. Map ----- +----------------------------------------------------+ | ?????????????????????????????? | | ?????????????????????????????? | | ?????????????????????????????? | | ?????????????????????????????? | | ?????????????????????????????? | | ?????????????????????????????? | | ?????????????????????????????? | | ?????????????????????????????? | | ?????????????????????????????? | | ?????????????????????????????? | | ?????????????????????????????? | | ?????????????????????????????? | | ?????????????????????????????? | | ?????????????????????????????? | | ?????????????????????????????? | | ?????????????????????????????? | | ?????????????????????????????? | | ?????????????????????????????? | | ????????????????????????###### | | ????????????????????????# # | | ????????????????????????#! # | | ??????????????????#######!* # | | ??????????????????? #]!! # | | ???????????????????? #[]!=# | | ?????????????????????# #!"" # | | ?????????????????????# #@Y" # | | ?????????????????????# +!"" # | | ?????????????????????# #!]!*# | | ????????????????????## ###### | | ????????????????????# #???? | | ????????????????????# #???? | | ????????????????????# #???? | | ???a????????????????# #???? | | ????????????????????## ###### | | ?????????????????????# # [ # | | ?????################# + # | | ?? # # | | ?? # # | | ??????###########+####### # | | ???????????# T"#?????# # | | ???????????#!! !#?????# = [# | | ???????????#!! #?????# # | | ???????????# #?????# # | | ???????????# #?????###### | | ???????????# #??????????? | | ????####+######+####?????????? | | #?????????? | | #?????????? | | #?????????? | | ? ##################?????????? | +----------------------------------------------------+ Best States ------------- Heat Dissipation 31 Energy Generation 10 Energy Capacity 250 Matter Stores 300 Matter Capacity 300 Sight Range 21 Terrain Scan Density 10 Armor Coverage 225 Core Shielding 20 Evasion (%) 50 Recoil Reduction 2 Item Schematics ----------------- Grenade Launcher | -10/Materials | Hacked Robot Schematics ------------------ None Fabricated ------------ Nothing Alien Tech Used ----------------- None Achievements -------------- None Challenges ------------ None Game ------ Seed FieldParticleFemtoactuators Manual? 0 Play Time 00:38:10 Cumulative 20.8 hours Start 2024.04.20 @ 02:44:27 End 2024.04.22 @ 16:18:45 Sessions 3 Manual Loads 0 Difficulty Rogue Special Mode None Game No. 19 Rogue 14 Adventurer 5 Explorer 0 Win Type - Total 0 Types 0/0/0/0/0/0/0/0/0 Lore% 22 Gallery% 24 Achievement% 19 Wizard Run 0 Options --------- Layout 2 ASCII 0 Keyboard 0 Movement Mouse Keybinds 0 Fullscreen 2 Font 24/Smallcaps Map View 50x44 Zoom Use 0% Tactical HUD 1 Map Filters NONE Filters NONE Steam 1 RUN: cb81fef6-7d9b-4251-9e8a-64f994965691